{"text_format":"3","workbook":"xlsx","n_sheets":4,"sheets":["Jalons","Feuille de route","À propos de","Données du graphique"],"not_rendered":{"charts":1,"defined_names":2},"read":"whole","date_system":"1900"}

{"sheet":"Jalons","index":0,"n_rows":27,"n_cols":5,"rows_kept":27}
["Créez une feuille de route en entrant des jalons et des activités importants dans cette feuille de calcul.\nLe titre de cette feuille de calcul figure dans la cellule C1. \nDes informations sur l’utilisation de cette feuille de calcul, notamment des instructions pour les lecteurs d’écran, figurent dans la feuille de calcul À propos de.\nContinuez à parcourir la colonne A pour lire des instructions supplémentaires.",null,"Jalons"]
["Les en-têtes de tableau figurent dans les cellules C2 à E2. Utilisez les options de tri et de filtrage pour trier ou rechercher des entrées spécifiques.\nEntrez des jalons avec des dates et définissez une position pour les placer sur le graphique, dans le tableau commençant cellule C3.\nLa colonne B est masquée. Le graphique est généré à partir de ces données. Une barre de défilement permet d’afficher les différentes parties de la chronologie. La colonne B permet de déterminer les jalons à afficher sur le graphique lorsque la barre de défilement est incrémentée. \nAvertissement : La suppression ou la modification du contenu de la colonne B peut perturber l’intégrité du graphique intégré à ce classeur.","N°","Position","Date","Jalon"]
["Entrez la position dans la cellule C1 pour placer la date et le jalon sur le graphique. Entrez un nombre positif compris entre 1 et 3 pour placer le jalon au-dessus de la chronologie. Entrez un nombre négatif compris entre 1 et 3 pour placer le jalon en-dessous de la chronologie.\nEntrez la date et le jalon ou l’activité dans les colonnes D et E du tableau.\nRépétez l’opération pour chaque ligne du tableau situé à droite.\nDes données d’exemple sont fournies dans les lignes 3 à 26. Modifiez ou supprimez le contenu d’exemple pour créer votre propre feuille de route.\nAccédez à la cellule A27 pour passer à l’instruction suivante.",{"$f":"ROW($A1)","v":1},1,{"$f":"TODAY()","v":"2018-06-27"},"Début"]
[null,{"$f":"ROW($A2)","v":2},-2,{"$f":"D3+10","v":"2018-07-07"},"Analyse du problème\nActivité 1"]
[null,3,1,{"$f":"D4+20","v":"2018-07-27"},"Constitution du dossier commercial\nActivité 1\nActivité 2"]
[null,4,-1,{"$f":"D5+30","v":"2018-08-26"},"Examen de la présentation"]
[null,5,{"v":-0.5,"d":"-1"},{"$f":"D6+40","v":"2018-10-05"},"Lancement (direction)\nActivité 1\nActivité 2"]
[null,6,2,{"$f":"D7+50","v":"2018-11-24"},"Coordination\nActivité 1\nActivité 2\nActivité 3"]
[null,7,{"v":0.5,"d":"1"},{"$f":"D8+60","v":"2019-01-23"},"Ralliement des parties prenantes"]
[null,8,-1,{"$f":"D9+70","v":"2019-04-03"},"Sélection des ressources"]
[null,9,{"v":0.5,"d":"1"},{"$f":"D10+80","v":"2019-06-22"},"Création de l’équipe\nActivité 1 "]
[null,10,-2,{"$f":"D11+90","v":"2019-09-20"},"Lancement (équipe)\nActivité 1 \nActivité 2\nActivité 3\nActivité 4"]
[null,11,3,{"$f":"D12+100","v":"2019-12-29"},"Début de la collecte de données"]
[null,12,-1,{"$f":"D13+90","v":"2020-03-28"},"Analyse des données"]
[null,13,1,{"$f":"D14+80","v":"2020-06-16"},"Conception"]
[null,14,1,{"$f":"D15+70","v":"2020-08-25"},"Étude de faisabilité"]
[null,15,-3,{"$f":"D16+60","v":"2020-10-24"},"Tests et analyse"]
[null,16,-2,{"$f":"D17+50","v":"2020-12-13"},"Révision de conception"]
[null,17,2,{"$f":"D18+40","v":"2021-01-22"},"Nouveau développement"]
[null,18,-1,{"$f":"D19+30","v":"2021-02-21"},"Tests et analyse"]
[null,19,1,{"$f":"D20+20","v":"2021-03-13"},"Révision de conception"]
[null,20,-3,{"$f":"D21+10","v":"2021-03-23"},"Nouveau développement"]
[null,21,2,{"$f":"D22+20","v":"2021-04-12"},"Test final"]
[null,22,1,{"$f":"D23+30","v":"2021-05-12"},"Test bêta"]
[null,23,-3,{"$f":"D24+40","v":"2021-06-21"},"Examen"]
[null,24,-2,{"$f":"D25+50","v":"2021-08-10"},"Marketing"]
["Pour ajouter des lignes au tableau Jalons feuille de route, insérez simplement une nouvelle ligne au-dessus de celle-ci.\nCette feuille de calcul ne contient pas d’autre instruction.",null,"Pour ajouter des jalons, insérez des lignes au-dessus de celle-ci."]

{"sheet":"Feuille de route","index":1,"n_rows":3,"n_cols":4,"rows_kept":3}
["Un graphique illustrant les jalons issus de la feuille de calcul Jalons figure dans cette feuille de calcul. \nLes années sont indiquées dans les cellules B2, C2 et D2 dans le style Titre 3.\n10 jalons sont placés à la fois. \nUtilisez la barre de défilement dans les cellules B4 à D4 pour parcourir la feuille de route.\nLes années de la chronologie figurent dans les cellules B3 à D3.\nCette feuille de calcul ne contient pas d’autre instruction."]
[]
[null,{"$f":"'Données du graphique'!B20","v":2018},{"$f":"'Données du graphique'!B21","v":""},{"$f":"'Données du graphique'!B22","v":2019}]

{"sheet":"À propos de","index":2,"n_rows":5,"n_cols":1,"rows_kept":5}
["À propos de ce classeur"]
["Instructions pour les lecteurs d’écran"]
["Ce classeur contient quatre feuilles de calcul. \n\nJalons\nFeuille de route\nÀ propos de\nDonnées du graphique (masqué)\n\nLes instructions relatives à chaque feuille de calcul figurent dans la colonne A à partir de la cellule A1. Elles sont rédigées en texte masqué. Chaque étape vous explique comment utiliser les informations décrites dans la ligne. Les étapes suivantes sont décrites dans les cellules A2, A3, etc. sauf mention contraire. Par exemple, l’instruction peut indiquer de « consulter la cellule A6 » pour l’étape suivante. \n\nLe texte masqué n’est pas imprimé.\n\nPour supprimer ces instructions d’une feuille de calcul, supprimez simplement la colonne A.\n"]
["Cette feuille de route utilise des positions pour placer des jalons et des activités sur le graphique. Les positions permettent d’ajouter du poids à un jalon ou une activité. Ajustez simplement les valeurs en fonction de vos préférences. Par exemple, le jalon/activité 3 peut avoir plus de poids que le jalon/activité 2. Pour illustrer cela dans le graphique, utilisez une valeur de position plus élevée pour le jalon/activité 3 que pour le jalon/activité 2.  \n"]
["Ceci est la dernière instruction de cette feuille de calcul."]

{"sheet":"Données du graphique","index":3,"n_rows":26,"n_cols":4,"rows_kept":26,"hidden":true}
["Les données permettant de créer le graphique dynamique figurent dans cette feuille de calcul. Ne supprimez pas cette feuille de calcul.\nLa suppression de cette feuille de calcul peut compromettre la fonctionnalité dynamique du classeur.","Ne supprimez pas cette feuille de calcul."]
["Le titre du tableau figure dans la cellule B2.","Contenu de graphique dynamique"]
["Les en-têtes de tableau figurent dans les cellules B3 à D3. \nCe tableau est automatiquement mis à jour en fonction du contenu entré dans la feuille de calcul Jalons.\nAvertissement : La modification ou la suppression du contenu de ce tableau peut compromettre la fonctionnalité de mise à jour dynamique du graphique Feuille de route figurant dans la feuille de calcul du même nom.\nAccédez à la cellule A15 pour passer à l’instruction suivante.","Date","Événements","Position"]
[null,{"$f":"IFERROR(IF(LEN(Jalons!D3)=0,\"\",INDEX(JalonsFeuilleDeRoute[],Jalons!$B3+$B$17,3)),\"\")","v":"2018-06-27"},{"$f":"IFERROR(IF(LEN(Jalons!E3)=0,\"\",INDEX(JalonsFeuilleDeRoute[],Jalons!$B3+$B$17,4)),\"\")","v":"Début"},{"$f":"IFERROR(INDEX(JalonsFeuilleDeRoute[],Jalons!$B3+$B$17,2),\"\")","v":1}]
[null,{"$f":"IFERROR(IF(LEN(Jalons!D4)=0,\"\",INDEX(JalonsFeuilleDeRoute[],Jalons!$B4+$B$17,3)),\"\")","v":"2018-07-07"},{"$f":"IFERROR(IF(LEN(Jalons!E4)=0,\"\",INDEX(JalonsFeuilleDeRoute[],Jalons!$B4+$B$17,4)),\"\")","v":"Analyse du problème\nActivité 1"},{"$f":"IFERROR(INDEX(JalonsFeuilleDeRoute[],Jalons!$B4+$B$17,2),\"\")","v":-2}]
[null,{"$f":"IFERROR(IF(LEN(Jalons!D5)=0,\"\",INDEX(JalonsFeuilleDeRoute[],Jalons!$B5+$B$17,3)),\"\")","v":"2018-07-27"},{"$f":"IFERROR(IF(LEN(Jalons!E5)=0,\"\",INDEX(JalonsFeuilleDeRoute[],Jalons!$B5+$B$17,4)),\"\")","v":"Constitution du dossier commercial\nActivité 1\nActivité 2"},{"$f":"IFERROR(INDEX(JalonsFeuilleDeRoute[],Jalons!$B5+$B$17,2),\"\")","v":1}]
[null,{"$f":"IFERROR(IF(LEN(Jalons!D6)=0,\"\",INDEX(JalonsFeuilleDeRoute[],Jalons!$B6+$B$17,3)),\"\")","v":"2018-08-26"},{"$f":"IFERROR(IF(LEN(Jalons!E6)=0,\"\",INDEX(JalonsFeuilleDeRoute[],Jalons!$B6+$B$17,4)),\"\")","v":"Examen de la présentation"},{"$f":"IFERROR(INDEX(JalonsFeuilleDeRoute[],Jalons!$B6+$B$17,2),\"\")","v":-1}]
[null,{"$f":"IFERROR(IF(LEN(Jalons!D7)=0,\"\",INDEX(JalonsFeuilleDeRoute[],Jalons!$B7+$B$17,3)),\"\")","v":"2018-10-05"},{"$f":"IFERROR(IF(LEN(Jalons!E7)=0,\"\",INDEX(JalonsFeuilleDeRoute[],Jalons!$B7+$B$17,4)),\"\")","v":"Lancement (direction)\nActivité 1\nActivité 2"},{"$f":"IFERROR(INDEX(JalonsFeuilleDeRoute[],Jalons!$B7+$B$17,2),\"\")","v":-0.5}]
[null,{"$f":"IFERROR(IF(LEN(Jalons!D8)=0,\"\",INDEX(JalonsFeuilleDeRoute[],Jalons!$B8+$B$17,3)),\"\")","v":"2018-11-24"},{"$f":"IFERROR(IF(LEN(Jalons!E8)=0,\"\",INDEX(JalonsFeuilleDeRoute[],Jalons!$B8+$B$17,4)),\"\")","v":"Coordination\nActivité 1\nActivité 2\nActivité 3"},{"$f":"IFERROR(INDEX(JalonsFeuilleDeRoute[],Jalons!$B8+$B$17,2),\"\")","v":2}]
[null,{"$f":"IFERROR(IF(LEN(Jalons!D9)=0,\"\",INDEX(JalonsFeuilleDeRoute[],Jalons!$B9+$B$17,3)),\"\")","v":"2019-01-23"},{"$f":"IFERROR(IF(LEN(Jalons!E9)=0,\"\",INDEX(JalonsFeuilleDeRoute[],Jalons!$B9+$B$17,4)),\"\")","v":"Ralliement des parties prenantes"},{"$f":"IFERROR(INDEX(JalonsFeuilleDeRoute[],Jalons!$B9+$B$17,2),\"\")","v":0.5}]
[null,{"$f":"IFERROR(IF(LEN(Jalons!D10)=0,\"\",INDEX(JalonsFeuilleDeRoute[],Jalons!$B10+$B$17,3)),\"\")","v":"2019-04-03"},{"$f":"IFERROR(IF(LEN(Jalons!E10)=0,\"\",INDEX(JalonsFeuilleDeRoute[],Jalons!$B10+$B$17,4)),\"\")","v":"Sélection des ressources"},{"$f":"IFERROR(INDEX(JalonsFeuilleDeRoute[],Jalons!$B10+$B$17,2),\"\")","v":-1}]
[null,{"$f":"IFERROR(IF(LEN(Jalons!D11)=0,\"\",INDEX(JalonsFeuilleDeRoute[],Jalons!$B11+$B$17,3)),\"\")","v":"2019-06-22"},{"$f":"IFERROR(IF(LEN(Jalons!E11)=0,\"\",INDEX(JalonsFeuilleDeRoute[],Jalons!$B11+$B$17,4)),\"\")","v":"Création de l’équipe\nActivité 1 "},{"$f":"IFERROR(INDEX(JalonsFeuilleDeRoute[],Jalons!$B11+$B$17,2),\"\")","v":0.5}]
[null,{"$f":"IFERROR(IF(LEN(Jalons!D12)=0,\"\",INDEX(JalonsFeuilleDeRoute[],Jalons!$B12+$B$17,3)),\"\")","v":"2019-09-20"},{"$f":"IFERROR(IF(LEN(Jalons!E12)=0,\"\",INDEX(JalonsFeuilleDeRoute[],Jalons!$B12+$B$17,4)),\"\")","v":"Lancement (équipe)\nActivité 1 \nActivité 2\nActivité 3\nActivité 4"},{"$f":"IFERROR(INDEX(JalonsFeuilleDeRoute[],Jalons!$B12+$B$17,2),\"\")","v":-2}]
[]
["La fonctionnalité de défilement dans la feuille de route repose sur une valeur incrémentielle. Le titre de cette fonctionnalité figure dans la cellule B15.\nUn tableau avec un en-tête et une valeur unique figure dans les cellules B16 à B17.\nAccédez à la cellule A19 pour passer à l’instruction suivante.","Fonctionnalité de défilement"]
[null,"Incrément de ligne"]
[null,0]
[]
["Le graphique Feuille de route illustre les années de la chronologie. Pour cela, les années doivent être capturées dans la liste des jalons. \nLe titre de cette section, « Année », figure dans la cellule B19. \nLes valeurs d’années sont automatiquement générées dans les cellules C20 à C22.\nAvertissement : La suppression ou la modification de ces années peut modifier la précision du graphique Feuille de route.\nAccédez à la cellule A24 pour passer à l’instruction suivante.","Année"]
[null,{"$f":"IFERROR(YEAR(B4),\"\")","v":2018},"<-- année de début de la feuille de route"]
[null,{"$f":"IFERROR(IF(YEAR($B$9)=$B$20,\"\",YEAR($B$9)),\"\")","v":""},"<-- année intermédiaire de la feuille de route. Ce champ peut être vide s’il s’agit de la même année que celle du début de la feuille de route."]
[null,{"$f":"IFERROR(IF(YEAR($B$13)=$B$20,\"\",YEAR($B$13)),\"\")","v":2019},"<-- année de fin de la feuille de route. Ce champ peut être vide s’il s’agit de la même année que celle du début de la feuille de route."]
[]
["Les marqueurs en forme d’anneau du graphique Feuille de route contiennent des dates issues du contenu de graphique dynamique figurant dans cette feuille de calcul. Il s’agit des valeurs de Date initiale en cellule C24, Date intermédiaire en cellule C25 et Date finale en cellule C26.\nCette feuille de calcul ne contient pas d’autre instruction.","Date initiale",{"$f":"B4","v":"2018-06-27"}]
[null,"Date intermédiaire",{"$f":"B9","v":"2018-11-24"}]
[null,"Date finale",{"$f":"B13","v":"2019-09-20"}]